Cogmind - Beta 17 @@@ ROGUE MODE // 2026.07.01 @ 21:18:35 Player: nnnnsk Result: Destroyed by 2X-5ZM(R) with Subdweller Machine Gun Performance ------------- Evolutions (0) 0 Regions Visited (2) 400 Robots Destroyed (19) 95 Value Destroyed (517) 517 Prototype IDs (0) 0 Alien Tech Used (0) 0 Bonus (0) 0 TOTAL SCORE: 1012 Bonus ------- None Cogmind --------- Core Integrity 0/250 Matter 285/300 Energy 125/125 System Corruption 1% Temperature Hot (210) Movement Core (500) Ox9 Location -10/Subcaves Parts ------- > --- POWER (1) -------- Light Ion Engine > --- PROPULSION (2) --- Aluminum Leg > --- UTILITY (2) ------ Large Storage Unit > --- WEAPON (2) ------- Assault Rifle Subdweller Machine Gun > --- INVENTORY (15) --- Aluminum Leg Aluminum Leg Compact Wheel Tractor Beam EM Pulse Gun Small Laser Small Laser Small Laser Particle Gun Light Assault Rifle Scrap Shield Fragment (45) Peak State ------------ > --- POWER ------------ Light Nuclear Core > --- PROPULSION ------- Light Treads Aluminum Leg > --- UTILITY ---------- Large Storage Unit Visual Processing Unit > --- WEAPON ----------- Battle Rifle Subdweller Machine Gun > --- INVENTORY -------- Light Ion Engine Aluminum Leg Aluminum Leg Compact Wheel Tractor Beam EM Pulse Gun Small Laser Small Laser Small Laser Particle Gun Assault Rifle Light Assault Rifle Scrap Shield Fragment [Rating: 13] Favorites ----------- Power Light Nuclear Core Engine Light Ion Engine Power Core Light Nuclear Core Propulsion Light Treads Treads Light Treads Leg Aluminum Leg Utility Light Armor Plating Device Tractor Beam Storage Small Storage Unit Processor Visual Processing Unit Protection Light Armor Plating Weapon Assault Rifle Energy Gun Small Laser Ballistic Gun Assault Rifle Build | -11 -10 -10 ------- Run | Yrd Mat Sub Slots Evolved . | . . . Power . | . . . Propulsion . | . . . Utility . | . . . Weapon . | . . . Parts Attached 18 | 7 3 8 Power 3 | 1 1 1 Engine 2 | 1 . 1 Core 1 | . 1 . Reactor . | . . . Propulsion 4 | 2 . 2 Treads 3 | 2 . 1 Leg 1 | . . 1 Wheel . | . . . Hover . | . . . Flight . | . . . Utility 6 | 2 2 2 Device 2 | 1 . 1 Storage 2 | 1 1 . Processor 1 | . . 1 Hackware . | . . . Protection 1 | . 1 . Artifact . | . . . Weapon 5 | 2 . 3 Energy Gun 1 | . . 1 Energy Cannon . | . . . Ballistic Gun 4 | 2 . 2 Ballistic Cannon . | . . . Launcher . | . . . Special Weapon . | . . . Impact Weapon . | . . . Slashing Weapon . | . . . Piercing Weapon . | . . . Special Melee Weapon . | . . . Unidentified Prototypes . | . . . Parts Lost 8 | . . 8 Power 1 | . . 1 Propulsion 3 | . . 3 Utility 2 | . . 2 Weapon 2 | . . 2 Highest Loss Streak 3 | . . 3 To Critical Strikes . | . . . Average Backups 9 | 4 8 12 Power . | . 1 . Propulsion 4 | 2 4 3 Utility . | . . 1 Weapon 3 | 1 2 6 Tool/Special . | . . . Unused Backups 9 | . . 9 Power . | . . . Propulsion 4 | . . 4 Utility . | . . . Weapon 5 | . . 5 Tool/Special . | . . . Average Slot Usage (%) 99 | . 99 99 Engine 2 | . 2 2 Core 11 | . 12 11 Treads 24 | . 28 17 Leg 3 | . . 10 Device 2 | . 2 3 Storage 14 | . 14 14 Processor 2 | . . 7 Protection 8 | . 11 3 Energy Gun 2 | . . 7 Ballistic Gun 25 | . 28 20 Peak Build Rating 13 | 7 10 13 Average Rating 9 | 4 8 11 On Entrance 5 | . 7 10 Avg Prop Armor Cover (%) 7 | . . 7 Naked Turns . | . . . Heaviest Build 33 | 13 32 33 Greatest Support 40 | 40 40 40 Greatest Overweight (x) 1 | . . 1 Average Overweight (x) . | . . . Largest Inventory Capacity 15 | 8 15 15 Average Capacity 10 | 7 9 15 Most Carried 15 | 8 15 15 Average Carried 9 | 4 8 13 Final Capacity 15 | 8 15 15 Final Carried 15 | 6 15 11 Class Distribution -------------------- 80% | Mutant 19% | Scavenger-Mutant Dominant Class ---------------- Mutant | -10/Materials Scavenger-Mutant | -10/Subcaves Resources | -11 -10 -10 ----------- Run | Yrd Mat Sub Matter Collected 834 | 312 318 204 Remotely 340 | 216 124 . Salvage Created 693 | 78 384 231 Parts 45 | 5 19 21 Haulers Intercepted 1 | . 1 . Recyclers Shooed . | . . . Parts Field Recycled . | . . . Retrieved Matter . | . . . Parts Self-Destructed . | . . . Prevented . | . . . Parts Restored . | . . . Kills | -11 -10 -10 ------- Run | Yrd Mat Sub Combat Hostiles Destroyed 14 | . 8 6 Guns 14 | . 8 6 Classes Destroyed 7 | 2 4 1 Worker 1 | 1 . . Hauler 1 | . 1 . Recycler 1 | 1 . . Watcher 2 | . 2 . Swarmer 3 | . 3 . Grunt 5 | . 5 . Subdweller 6 | . . 6 Best Kill Streak 2 | 2 2 2 Combat Bots Only 2 | . 2 2 Max Kills in Single Turn 1 | 1 1 1 Gunslinging . | . . . Exploded . | . . . Melee . | . . . Uniques/NPCs Destroyed . | . . . Combat | -11 -10 -10 -------- Run | Yrd Mat Sub Hostile Shots Fired 104 | . 53 51 Missed 28 | . 18 10 Hits 76 | . 35 41 Projectile 76 | . 35 41 Critical Strikes 1 | . . 1 Damage Taken 1281 | . 401 880 Core 253 | . 71 182 Absorbed by Shields . | . . . Core Remaining (%) 100 | 100 . . Volleys Fired 87 | 7 48 32 Largest 2 | 2 2 2 Hottest 65 | 40 40 65 Shots Fired 173 | 14 96 63 Gun 173 | 14 96 63 Cannon . | . . . Launcher . | . . . Special . | . . . Kinetic 167 | 14 96 57 Thermal 6 | . . 6 Explosive . | . . . Electromagnetic . | . . . Robot Hit Streak 19 | 7 9 19 Robot Miss Streak 3 | 1 3 2 Penetration Max . | . . . Secondary Targets 1 | . . 1 Max Gunslinging Chain 1 | . . 1 Shots Hit Robots 132 | 12 67 53 Core Hits 34 | 3 19 12 Critical Kills 1 | . . 1 Critical Parts Destroyed 1 | . 1 . Critical Strikes 2 | . 1 1 Destroy 2 | . 1 1 Melee Attacks . | . . . Impact . | . . . Slashing . | . . . Piercing . | . . . Sneak Attacks . | . . . Combat Hostiles . | . . . Follow-up Attacks . | . . . Damage Inflicted 1633 | 145 827 661 Guns 1633 | 145 827 661 Cannons . | . . . Explosions . | . . . Melee . | . . . Ramming . | . . . Kinetic 1590 | 145 827 618 Thermal 43 | . . 43 Explosive . | . . . Electromagnetic . | . . . Impact . | . . . Slashing . | . . . Piercing . | . . . Highest Corruption 1 | . 1 1 Average Corruption 1 | . 1 1 Corruption Purged . | . . . Corruption Blocked . | . . . Effects 9 | . 1 8 Message Errors 1 | . . 1 Matter Fused 2 | . . 2 Heat Flow Errors 1 | . . 1 Energy Discharges 2 | . 1 1 Data Loss (minor) 2 | . . 2 Alerts 1 | . . 1 Overload Shots . | . . . Overflow Damage . | . . . Projectiles . | . . . Explosions . | . . . Melee . | . . . Knockbacks . | . . . Impact . | . . . Kinetic . | . . . Secondary . | . . . Self-Inflicted Damage . | . . . Shots . | . . . Rammed . | . . . Targets Rammed . | . . . Kicked . | . . . Crushed . | . . . Highest Temperature 210 | . 16 210 Average Temperature 10 | . 5 210 Received Heat Transfer 246 | . 192 54 Siege Activations . | . . . Martial Activations . | . . . Shielding Activations . | . . . Robots Disrupted . | . . . Combat Hostiles . | . . . Robots Corrupted . | . . . Combat Hostiles . | . . . Parts Fried . | . . . Impact Corruptions . | . . . Robots Melted . | . . . Combat Hostiles . | . . . Parts Melted 1 | . . 1 Heat Transferred 100 | . . 100 Parts Sabotaged . | . . . Parts Stolen . | . . . Parts Stripped . | . . . Power Chain Reactions . | . . . Alert | -11 -10 -10 ------- Run | Yrd Mat Sub Maximum Alert Level . | . . . Low Security (%) 100 | 100 100 . Level 1 . | . . . Level 2 . | . . . Level 3 . | . . . Level 4 . | . . . Level 5 . | . . . High Security . | . . . Max Security . | . . . Peak Influence 64 | 5 64 . Initial 3 | . 3 . Average 13 | 1 14 . Influence Increases 305 | 10 295 . Destroy 0b10 Robot/C 160 | . 160 . Destroy 0b10 Robot/NC 25 | 10 15 . Destroy Leader 46 | . 46 . Successful Hack 14 | . 14 . Disable Machine 15 | . 15 . Lose Combat Pursuer 45 | . 45 . Influence Decreases 305 | 5 283 17 Entered New Map 11 | . 2 9 Time Decay 294 | 5 281 8 Squads Dispatched 1 | . 1 . Investigation . | . . . Extermination . | . . . Reinforcement 1 | . 1 . Assault . | . . . Garrison . | . . . Intercept . | . . . Searches Triggered . | . . . Construction Impeded . | . . . Haulers Reinforced . | . . . Active Scanning Responses . | . . . Cargo Convoy Interrupts . | . . . Stealth | -11 -10 -10 --------- Run | Yrd Mat Sub Distress Signals 2 | . 2 . Communications Jammed . | . . . Distress Signals . | . . . Times Spotted 26 | . 19 7 Peak Tracking Total 4 | . 4 2 Tactical Retreats 3 | . 3 . Traps | -11 -10 -10 ------- Run | Yrd Mat Sub Traps Triggered 1 | . 1 . Indirectly . | . . . Trap Hack Attempts . | . . . Triggered . | . . . Disarmed . | . . . Reprogrammed . | . . . Reused . | . . . Traps Extracted . | . . . Installed . | . . . Triggered . | . . . Machines | -11 -10 -10 ---------- Run | Yrd Mat Sub Machines Disabled 1 | . 1 . Max in Single Turn 1 | . 1 . Machines Repaired . | . . . Machines Dismantled . | . . . Machines Sabotaged . | . . . Overloaded Fab Kills . | . . . Hacking | -11 -10 -10 --------- Run | Yrd Mat Sub Machines Accessed 7 | . 7 . Terminals 6 | . 6 . Fabricators . | . . . Repair Stations . | . . . Recycling Units 1 | . 1 . Scanalyzers . | . . . Garrison Access . | . . . Total Hacks 22 | . 22 . Successful 13 | . 13 . Failed 9 | . 9 . Catastrophic 1 | . 1 . Database Lockouts . | . . . Manual 18 | . 18 . Terminals 20 | . 20 . Fabricators . | . . . Repair Stations . | . . . Recycling Units 2 | . 2 . Scanalyzers . | . . . Garrison Access . | . . . Terminal Hacks 3 | . 3 . Terminal Index 1 | . 1 . Locate Traps 1 | . 1 . Zone Layout 1 | . 1 . Fabricator Hacks . | . . . Repair Station Hacks . | . . . Recycling Unit Hacks 2 | . 2 . Report Inventory 1 | . 1 . Retrieve Components 1 | . 1 . Scanalyzer . | . . . Garrison Access Hacks . | . . . Unauthorized Hacks 8 | . 8 . Terminals 8 | . 8 . Botnet 3 | . 3 . Skim 5 | . 5 . Fabricators . | . . . Repair Stations . | . . . Recycling Units . | . . . Scanalyzers . | . . . Garrison Access . | . . . Data Cores Recovered . | . . . Used . | . . . Hacking Detections 7 | . 7 . Full Trace Events . | . . . Feedback Events . | . . . Feedback Blocked . | . . . Robot Schematics Acquired . | . . . Robots Built . | . . . Authchips . | . . . Time . | . . . Total Robot Build Rating . | . . . Part Schematics Acquired . | . . . Parts Built . | . . . Authchips . | . . . Time . | . . . Total Part Build Rating . | . . . Part Studies Acquired . | . . . Parts Repaired . | . . . Time . | . . . Parts Recycled . | . . . Recycled Matter . | . . . Retrieved Matter . | . . . Retrieved Components 9 | . 9 . Parts Scanalyzed . | . . . Part Schematics Acquired . | . . . Parts Damaged . | . . . Bothacking | -11 -10 -10 ------------ Run | Yrd Mat Sub Used RIF Installer . | . . . Robots Hacked . | . . . Non-combat . | . . . Combat . | . . . Robot Hacks Applied . | . . . Relay Couplers Released . | . . . Fabnet Peak Effective % . | . . . Robots Rewired . | . . . Allies Hacked . | . . . Hacks Repelled . | . . . Allies | -11 -10 -10 -------- Run | Yrd Mat Sub Total Allies . | . . . Largest Group . | . . . Highest-Rated Group . | . . . Highest-Rated Ally . | . . . Total Orders . | . . . Ally Attacks . | . . . Total Damage . | . . . Kills . | . . . Allies Corrupted . | . . . Allies Melted . | . . . Intel | -11 -10 -10 ------- Run | Yrd Mat Sub Active Infowar (turns) 496 | . . 496 Optics 496 | . . 496 Robot Analysis Total . | . . . Derelict Logs Recovered 1 | . . 1 Drone Launches . | . . . Drone Recoveries . | . . . Exploration | -11 -10 -10 ------------- Run | Yrd Mat Sub Turns Passed 2077 | 108 1329 640 Spaces Moved 677 | 46 404 227 Core 3 | 3 . . Treads 674 | 43 404 227 Legs . | . . . Wheels . | . . . Hover . | . . . Flight . | . . . Fastest Speed 50 | 50 160 160 Average Speed 180 | 152 160 222 Slowest Speed 240 | 160 160 240 Overloaded Moves . | . . . Propulsion Burnouts . | . . . Robots Hopped . | . . . Potential Cave-ins . | . . . Cave-ins Triggered . | . . . Exploration Rate (%) 27 | 3 63 17 Regions Visited 2 Branch Regions 1 Pre-discovered Areas 2 | . 2 . Known Exits Taken 1 | . 1 . Unknown Exits Taken 1 | 1 . . Scrap Searched 3 | . . 3 Spaces Dug . | . . . Terrain Destroyed . | . . . Melee . | . . . Projectile . | . . . AOE . | . . . Terrain Rammed . | . . . Walls Destroyed . | . . . Machines Disabled . | . . . Actions | -11 -10 -10 --------- Run | Yrd Mat Sub Total 1359 | 67 992 300 Wait 551 | . 526 25 Move 675 | 45 403 227 Hop . | . . . Pick Up 21 | 8 9 4 Fast Attach 6 | 5 1 . Attach 8 | 2 . 6 Detach . | . . . Swap 5 | . 2 3 Drop 6 | . 3 3 Fire 87 | 7 48 32 Melee . | . . . Ram . | . . . Kick . | . . . Crush . | . . . Escape Stasis . | . . . Rewire . | . . . Trap . | . . . Miscellaneous . | . . . Route ------- -11/Scrapyard -10/Materials (discovered 5 exits: *Mat x3 / [*Min] / *Sub) -10/Subcaves (discovered 1 exit: Rec) History --------- Turn | Location | Event 3 | -11/Scrapyard | Discovered new exit (range 16) 109 | -11/Scrapyard | Entered Materials 196 | -10/Materials | Discovered new exit (range 15) 318 | -10/Materials | Build established: Mutant 442 | -10/Materials | Discovered new exit (range 10) 775 | -10/Materials | Learned location of Recycling (-7) 844 | -10/Materials | Identified exit to Materials 844 | -10/Materials | Identified exit to Subcaves 950 | -10/Materials | Loaded intel: 1 repair station location 989 | -10/Materials | Learned Storage trap positions 1099 | -10/Materials | Learned 4 Subcaves zone layouts 1438 | -10/Materials | Entered Subcaves 1439 | -10/Subcaves | Identified exit to Recycling 1617 | -10/Subcaves | Lost 3 parts (2n1u) 1869 | -10/Subcaves | Core integrity fell below 50% 1884 | -10/Subcaves | Build established: Scavenger-Mutant 1888 | -10/Subcaves | Core integrity fell below 20% 1905 | -10/Subcaves | Learned Materials security intel 2078 | -10/Subcaves | Destroyed by 2X-5ZM(R) with Subdweller Machine Gun Last Messages --------------- 01973_ Lgt. Nuclear Core destroyed. 01978_ 8O-PVQ(R) destroyed. 01981_ Acquired 38 matter. 01986_ Searching scrap... 01986_ Found Sub. Optics. 01986_ Found Sub. Shrapnel Launcher. 01986_ Found 50 Matter. 01987_ Acquired 13 matter. 01988_ Searching scrap... 01988_ Found Shrapnel Trap. 01991_ Searching scrap... 01991_ Found Battle Cannon. 02020_ System corrupted: Component data lost. 02066_ RR-PCV(R) suffers critical hit (Destroy). 02066_ RR-PCV(R) destroyed. 02073_ 2X-5ZM(R) affixes Scrap Shield Fragment to Scrap Shield. 02074_ Sub. Optics destroyed. 02076_ Lgt. Treads destroyed. 02077_ System corrupted: Heat flow error (+234). Map ----- +----------------------------------------------------+ | ?????????????????????????????????????????????? | | ?????????????????????????????????????????????? | | ?????????????????????????????????????????????? | | ?????????????????????????????????????????????? | | ?????????????????????????????????????????????? | | ?????????????????????????????????????????????? | | ?????????????????????????????????????????????? | | ?????????????????????????????????????????????? | | ?????????????????????????????????????????????? | | ?????????????????????????????????????????????? | | ?????????????????????????????????????????????? | | ?????????????????????????????????????????????? | | ??????????? ?????????????????????????????????? | | ???????????? ????????????????????????????????? | | ????????????? ???????????????????????????????? | | ?????????????? ??????????????????????????????? | | ??????????????# ?????????????????????????????? | | ?????????????## ????????????????????????????? | | ?????????????? ????????????????????????????? | | ????????????##? ???????????????????????????? | | ???????????## ? ??????????????????????????? | | ???????????? ?????????????????????????? | | ?????????????? ????????????????????????? | | ????????????????# # ???????????????????????? | | ??????????????????# #########??????????????? | | ??????????????????# # @" # #??????????????? | | ???????????????????# !%* #??????????????? | | ???????????????????## #R # #??????????????? | | ??????????????????????##### ##??????????????? | | ??????????????????????????## #??????????????? | | ????????????????????###???## #??????????????? | | ??????????????????### ##### #??????????????? | | ??????????????????# ## #??????????????? | | ???????????????##### ## ##??????????????? | | ??????????????##&!"## #???????????????? | | ??????????????#"]#&#" ##???????????????? | | ??????????????#%&#&*&! ####????????????????? | | ??????????????#&"#&#" ##???????????????????? | | ??????????????#]#### #####????????????????? | | ??????????????###??## ###??????????????? | | ????????????????????# ##?????????????? | | ????????????????????# #?????????????? | | ????????????????????# #?????????????? | | ??????????????????#### ######?????????????? | | ???????????????#### # ##??????????????????? | | ??####????????## ##??##???????????????? | | ?## #????????# #" " ##?# #???????????????? | | ?# ##????##### #"" "# ## #???????????????? | | ## ###### # # = ## ##??????????????? | | ### ## # #??????????????? | +----------------------------------------------------+ Best States ------------- Heat Dissipation 25 Energy Generation 14 Energy Capacity 160 Matter Stores 300 Matter Capacity 300 Sight Range 21 Terrain Scan Density 10 Armor Coverage 150 Evasion (%) 40 Recoil Reduction 2 Item Schematics ----------------- None Robot Schematics ------------------ None Fabricated ------------ Nothing Repaired ---------- Nothing Studied --------- None Alien Tech Used ----------------- None Achievements -------------- None Challenges ------------ None Game ------ Seed ImpactScimitarMegatreads Manual? 0 Play Time 00:13:56 Cumulative 88.5 hours Start 2026.07.01 @ 21:02:54 End 2026.07.01 @ 21:18:35 Sessions 1 Manual Loads 0 Difficulty Rogue Special Mode None Game No. 102 Rogue 95 Adventurer 0 Explorer 7 Win Type - Total 1 Types 1/0/0/0/0/0/0/0/0/0 Lore% 27 Gallery% 36 Achievement% 30 Wizard Run 0 Options --------- Layout 1 ASCII 0 Keyboard 0 Movement Numpad Keybinds 0 Fullscreen 2 Font 32/SmallcapsGlow Map View 50x35 Zoom Use 0% Tactical HUD 1 Map Filters NONE Filters NONE Steam 1 RUN: 74a2a8b4-c511-4363-bfc5-cc15191013ea